bitfinex/quotes_ETHUSD_20251017
["timestamp","ask_amount","ask_price","bid_price","bid_amount"]
[1760710093348,2.64924228,3774.7,3774.0,2.64969849]
[1760710093493,0.04616809,3775.2,3773.4,0.4507]
[1760710093892,2.64874602,3775.4,3774.3,2.64943371]
[1760710094098,2.64874602,3775.4,3773.3,0.2204]
[1760710094099,0.4601,3775.5,3773.3,0.2204]
[1760710094298,0.4601,3775.5,3773.2,0.2204]
[1760710094607,2.64942056,3774.5,3773.6,2.6499894]
[1760710094803,2.64944142,3774.4,3773.7,2.64989738]
[1760710095006,2.64925657,3774.7,3773.2,0.2204]
[1760710095007,2.64981052,3773.9,3773.2,0.2204]
[1760710095351,2.64941522,3774.5,3773.7,2.6499189]
[1760710095555,1.728,3775.8,3773.8,0.4507]
[1760710095844,0.86741244,3775.4,3773.3,0.4507]
[1760710096148,0.86741244,3775.4,3773.2,0.2204]
[1760710096149,0.41551244,3775.4,3774.1,2.64957737]
[1760710096464,0.04616524,3776.0,3775.3,0.2204]
[1760710096751,0.04616098,3776.9,3775.4,0.4507]
[1760710096956,2.64784206,3776.7,3775.9,2.64833868]
[1760710097129,2.6938433,3776.9,3776.1,2.64823495]
[1760710097130,0.04616098,3776.9,3776.1,2.64823495]
[1760710097340,0.002,3777.7,3776.2,0.2204]
[1760710097516,2.69352198,3777.4,3776.0,0.4507]
[1760710097716,2.6934916,3777.4,3776.0,0.4507]
[1760710099254,1.728,3777.4,3776.0,0.4507]
[1760710099402,2.64731444,3777.5,3775.9,0.6711]
[1760710099604,0.132,3776.7,3776.1,0.132]
[1760710100053,0.1216,3776.9,3775.3,2.86917664]
[1760710100388,0.1216,3776.9,3775.3,0.2204]
[1760710100508,0.1216,3776.9,3775.2,0.4507]
[1760710100509,0.4684,3776.8,3775.0,0.2204]
[1760710100837,2.64876405,3775.4,3774.6,2.64923658]
[1760710101018,0.4684,3776.3,3774.6,2.64923658]
[1760710101203,0.4684,3776.3,3774.5,0.4507]
[1760710101404,0.04616292,3776.5,3774.5,0.4507]
[1760710101405,0.04616292,3776.5,3774.6,0.02649287]
[1760710101750,0.41535599,3777.5,3775.0,2.64900662]
[1760710102055,0.002,3777.7,3776.8,2.64771692]
[1760710102356,0.002,3777.7,3776.0,0.4363]
[1760710102563,0.002,3777.7,3775.5,0.4363]
[1760710102564,0.2331,3777.6,3775.5,0.4363]
[1760710102709,2.64777365,3776.8,3775.5,0.4363]
[1760710102905,1.9611,3777.6,3775.5,0.4363]
[1760710103254,2.64772265,3776.9,3776.1,2.64822857]
[1760710103551,0.002,3777.7,3775.6,0.6336]
[1760710103718,1.728,3777.5,3776.2,0.4363]
[1760710104049,2.64770976,3776.9,3776.0,0.4363]
[1760710104262,0.002,3777.7,3776.0,0.4363]
[1760710104411,2.64764665,3777.0,3776.3,2.6480727]
[1760710104611,0.002,3777.7,3776.4,0.4363]
[1760710104810,1.728,3777.6,3776.5,0.02647954]
[1760710105148,0.002,3777.7,3776.6,0.4363]
[1760710105316,0.002,3777.7,3777.1,2.64752958]
[1760710105517,0.002,3777.7,3776.6,0.4363]
[1760710105732,1.728,3777.4,3775.7,0.4363]
[1760710105908,2.64802906,3776.4,3775.7,0.4363]
[1760710106106,2.64802906,3776.4,3775.1,2.86799305]
[1760710106107,2.64788434,3776.6,3775.1,0.2191]
[1760710106344,2.64828863,3776.1,3775.3,2.64873728]
[1760710106562,0.213,3776.7,3775.1,2.86802912]
[1760710106563,0.213,3776.7,3775.1,0.2191]
[1760710106704,2.64773487,3776.9,3776.1,2.64822754]
[1760710106902,1.728,3777.5,3776.5,2.64793043]
[1760710107109,2.64742761,3777.3,3776.1,0.4363]
[1760710107326,0.41727005,3777.7,3776.1,0.4363]
[1760710107764,0.41727005,3777.7,3776.1,3.084471]
[1760710107905,2.64779189,3776.8,3775.7,2.6485155]
[1760710108239,2.64733788,3777.4,3776.7,2.64776225]
[1760710108444,0.002,3777.7,3776.3,0.4363]
[1760710108655,0.002,3777.7,3777.1,2.64747497]
[1760710108833,0.002,3777.7,3776.4,2.64802457]
[1760710109047,0.002,3777.7,3776.3,0.4363]
[1760710109048,0.002,3777.7,3776.5,0.02647954]
[1760710109335,0.002,3777.7,3776.0,2.892]
[1760710109336,0.002,3777.7,3776.6,0.4363]
[1760710109559,0.002,3777.7,3777.6,2.86628339]
[1760710110053,0.002,3777.7,3777.6,3.43458339]
[1760710110211,0.002,3777.7,3777.6,2.77918339]
[1760710110740,0.002,3777.7,3777.6,0.132]
[1760710110937,0.002,3777.7,3775.5,3.3273]
[1760710110938,2.64790327,3776.6,3775.5,3.3273]
[1760710111110,0.2149,3777.7,3775.5,3.3273]
[1760710111111,2.64766501,3777.0,3775.5,0.4373]
[1760710111307,2.64740324,3777.3,3776.3,2.64808974]
[1760710111549,2.64916213,3777.7,3776.3,2.64808974]
[1760710111550,0.002,3777.7,3776.3,2.64808351]
[1760710111755,0.002,3777.7,3776.4,3.08427553]
[1760710112010,2.64726647,3777.5,3776.5,0.02647954]
[1760710112214,2.64726965,3777.5,3776.7,2.6477473]
[1760710112412,0.002,3777.7,3777.1,2.6475042]
[1760710112655,0.002,3777.7,3776.8,0.4363]
[1760710112656,2.64718764,3777.6,3776.8,0.4363]
[1760710112822,2.64742581,3777.3,3776.2,0.2191]
[1760710113026,2.64742581,3777.3,3776.6,2.64787207]
[1760710113347,0.002,3777.7,3776.4,0.02648024]
[1760710113544,0.002,3777.7,3776.2,3.1091]
[1760710113545,0.002,3777.7,3776.7,0.02647814]
[1760710113858,0.002,3777.7,3776.8,0.46277744]
[1760710114013,0.002,3777.7,3777.6,2.64718339]
[1760710114639,0.002,3777.7,3777.2,3.3273]
[1760710114853,0.002,3777.7,3777.5,2.64719283]
[1760710115024,0.002,3777.7,3777.2,3.3273]
[1760710115366,0.002,3777.7,3776.2,0.2191]
[1760710115561,2.6480129,3776.5,3775.5,0.4373]
[1760710115762,0.2133,3777.6,3775.5,0.4373]
[1760710115930,0.2133,3777.5,3775.5,0.4373]
[1760710116131,0.2133,3777.4,3775.5,0.4373]
[1760710116326,0.2133,3777.4,3775.5,0.001]
[1760710117074,2.64858565,3775.6,3775.5,0.001]
[1760710117281,1.728,3776.7,3775.5,0.001]
[1760710117432,2.64858565,3775.6,3775.5,0.001]
[1760710118364,2.86178565,3775.6,3775.5,0.001]
[1760710118534,4.58978565,3775.6,3775.5,0.001]
[1760710119180,4.37658565,3775.6,3775.5,0.001]
[1760710119375,0.2329,3776.7,3775.5,0.001]
[1760710119542,0.04615192,3776.6,3775.5,0.4373]
[1760710120073,0.2132,3777.3,3775.5,0.4373]
[1760710120290,2.86525652,3777.1,3775.5,0.4373]
[1760710120447,2.64779441,3776.8,3776.0,2.6482454]
[1760710120650,2.64782412,3776.7,3776.0,2.6482454]
[1760710120847,0.132,3776.9,3776.2,0.132]
[1760710121240,2.64663779,3778.4,3776.4,0.6336]
[1760710121434,3.09042052,3778.9,3776.5,2.204126]
[1760710121435,2.64698591,3777.9,3776.5,2.204126]
[1760710121737,0.04613688,3778.5,3776.5,0.4363]
[1760710121885,0.04613688,3778.5,3777.6,2.64718339]
[1760710122087,0.002,3779.7,3777.6,2.64718339]
[1760710122088,0.4441,3779.5,3777.6,2.64718339]
[1760710122278,2.64772978,3779.7,3777.6,2.64718339]
[1760710122279,2.64651595,3778.6,3777.6,2.64718339]
[1760710122589,0.04612526,3779.0,3777.6,3.08348339]
[1760710123144,0.41511024,3779.6,3777.6,3.10995522]
[1760710123452,0.2155,3779.7,3777.6,3.10995522]
[1760710123453,2.64600826,3779.3,3777.6,3.71708339]
[1760710123683,0.0012,3777.7,3777.6,3.71708339]
[1760710123899,0.0012,3777.7,3777.6,5.90339022]
[1760710124046,0.0012,3777.7,3777.6,9.91608339]
[1760710124242,0.0012,3777.7,3777.6,3.71708339]
[1760710124480,0.0012,3777.7,3777.3,0.2191]
[1760710124693,0.0012,3777.7,3776.2,2.64811703]
[1760710124694,0.0012,3777.7,3776.7,0.2191]
[1760710124999,0.0012,3777.7,3776.2,0.4363]
[1760710125000,0.0012,3777.7,3777.3,2.64738174]
[1760710125283,0.0012,3777.7,3777.1,2.64753382]
[1760710125577,0.0012,3777.7,3777.2,2.64742157]
[1760710126157,0.0012,3777.7,3777.5,2.64724938]
[1760710126360,0.0012,3777.7,3777.2,2.64742826]
[1760710126560,0.0012,3777.7,3776.9,2.64761471]
[1760710126844,0.0012,3777.7,3776.9,2.64766444]
[1760710127048,0.0012,3777.7,3776.4,0.4363]
[1760710127278,0.0012,3777.7,3776.5,0.4363]
[1760710127577,0.0012,3777.7,3776.3,0.2191]
[1760710127765,0.0012,3777.7,3776.4,2.64802457]
[1760710127967,0.0012,3777.7,3776.8,2.64774412]
[1760710128153,0.0012,3777.7,3777.1,2.64751574]
[1760710128469,0.0012,3777.7,3777.6,2.64718339]
[1760710128870,0.0012,3777.7,3777.6,3.10995522]
[1760710129150,0.0012,3777.7,3777.6,3.71708339]
[1760710129603,0.0012,3777.7,3777.6,6.60808339]
[1760710130074,0.0012,3777.7,3777.6,3.08348339]
[1760710130274,0.0012,3777.7,3777.6,3.74355522]
[1760710130589,0.0012,3777.7,3777.6,3.08348339]
[1760710130797,0.0012,3777.7,3777.6,2.64718339]
[1760710131293,0.0012,3777.7,3777.6,3.21548339]
[1760710131782,0.0012,3777.7,3777.6,3.24195522]
[1760710132353,0.0012,3777.7,3777.6,6.10548339]
[1760710132883,0.0012,3777.7,3777.6,5.66818339]
[1760710133189,0.0012,3777.7,3777.6,2.77918339]
[1760710133660,0.0012,3777.7,3777.6,3.71938339]
[1760710134089,0.002,3778.1,3777.6,3.71938339]
[1760710134090,1e-08,3778.1,3778.0,6.31919612]
[1760710134387,1e-08,3778.1,3778.0,5.53490312]
[1760710134562,1e-08,3778.1,3777.7,2.888]
[1760710134766,1e-08,3778.1,3777.1,1.0722]
[1760710134965,1e-08,3778.1,3778.0,2.64690312]
[1760710135562,1e-08,3778.1,3777.3,0.6336]
[1760710135770,1e-08,3778.1,3778.0,2.64690312]
[1760710135954,1e-08,3778.1,3778.0,3.30697215]
[1760710136178,1e-08,3778.1,3778.0,3.71910312]
[1760710136387,1e-08,3778.1,3778.0,12.61145515]
[1760710136556,1e-08,3778.1,3778.0,3.71910312]
[1760710136756,1e-08,3778.1,3778.0,6.60510312]
[1760710137481,1e-08,3778.1,3778.0,2.64690312]
[1760710138006,1e-08,3778.1,3778.0,3.71910312]
[1760710138370,1e-08,3778.1,3778.0,9.78004212]
[1760710138561,1e-08,3778.1,3778.0,6.60610312]
[1760710138760,1e-08,3778.1,3778.0,5.97250312]
[1760710138962,1e-08,3778.1,3778.0,10.86624412]
[1760710139290,1e-08,3778.1,3778.0,9.64638612]
[1760710139494,0.002,3778.5,3778.4,16.0029099]
[1760710139790,0.002,3779.7,3779.6,2.64578262]
[1760710140167,0.002,3779.7,3778.5,3.71875286]
[1760710140168,0.002,3779.7,3779.3,2.64593531]
[1760710140373,0.4476,3779.6,3779.4,2.64587065]
[1760710140583,0.002,3779.7,3779.4,2.64587065]
[1760710140792,0.002,3779.7,3779.3,2.64593492]
[1760710141294,0.002,3779.7,3778.9,2.886]
[1760710141468,0.002,3779.7,3779.0,3.27980269]
[1760710141672,0.002,3779.7,3779.4,2.64585981]
[1760710141876,0.002,3779.7,3779.6,2.64578262]
[1760710142181,0.002,3779.7,3779.6,6.16338262]
[1760710142360,0.002,3779.7,3778.6,0.4331]
[1760710142559,0.002,3779.7,3778.5,0.6336]
[1760710142560,0.3316,3779.6,3778.5,0.6336]
[1760710142766,0.3316,3779.6,3778.7,2.64635864]
[1760710142961,2.6459975,3779.3,3778.5,0.6336]
[1760710143190,0.002,3779.7,3778.1,2.64682488]
[1760710143191,0.2174,3778.6,3778.1,2.64682488]
[1760710143388,2.64641278,3778.7,3777.2,0.02647463]
[1760710143669,2.64641278,3778.7,3776.3,0.2191]
[1760710143670,0.3304,3778.6,3776.3,0.2191]
[1760710143995,0.3304,3778.6,3776.0,1.3355]
[1760710143996,1.728,3778.5,3776.0,1.3355]
[1760710144330,0.3304,3778.4,3776.1,0.4331]
[1760710144536,2.64728453,3777.5,3776.7,2.64775365]
[1760710144836,4.374763,3778.2,3776.3,0.6336]
[1760710144837,0.5653,3777.4,3776.3,0.6336]
[1760710144999,0.5653,3777.4,3776.6,2.64787499]
[1760710145194,0.22,3776.7,3775.5,0.4341]
[1760710145516,0.22,3776.7,3775.5,0.001]
[1760710145711,0.22,3776.7,3776.3,2.6480858]
[1760710145906,0.22,3776.7,3775.7,0.6336]
[1760710146109,0.22,3776.7,3776.0,2.6482436]
[1760710146313,0.22,3776.7,3775.5,0.001]
[1760710146502,2.64858565,3775.6,3775.5,0.001]
[1760710146708,4.49558565,3775.6,3775.5,0.001]
[1760710146939,4.92078565,3775.6,3775.5,0.001]
[1760710147427,4.91998565,3775.6,3775.5,0.001]
[1760710147937,5.55358565,3775.6,3775.5,0.001]
[1760710148134,3.28246628,3775.2,3775.1,0.001]
[1760710148438,5.01046628,3775.2,3775.1,0.001]
[1760710148637,5.43466628,3775.2,3775.1,0.001]
[1760710148812,4.80106628,3775.2,3775.1,0.001]
[1760710149204,5.21661182,3775.2,3775.1,0.001]
[1760710149536,2.1983682,3775.2,3775.1,0.001]
[1760710149737,0.1182,3775.6,3775.1,0.001]
[1760710149922,0.4242,3775.2,3775.1,0.001]
[1760710150122,0.04616007,3775.7,3775.1,0.001]
[1760710150324,0.22,3776.7,3775.6,2.64858565]
[1760710150551,0.22,3776.7,3775.1,0.6532]
[1760710150552,0.22,3776.7,3775.1,0.001]
[1760710150715,0.4212,3776.6,3775.1,0.001]
[1760710150915,2.64886628,3775.2,3775.1,0.001]
[1760710151320,3.07006628,3775.2,3775.1,0.001]
[1760710151522,0.4212,3775.8,3775.1,0.001]
[1760710151738,0.4212,3775.2,3775.1,0.001]
[1760710151951,0.04616108,3775.7,3775.1,0.001]
[1760710152537,0.4212,3775.9,3775.1,0.001]
[1760710152538,2.64874745,3775.4,3775.1,0.001]
[1760710152740,0.4212,3775.9,3775.1,0.001]
[1760710152951,0.4212,3775.8,3775.1,0.001]
[1760710153161,2.64886628,3775.2,3775.1,0.001]
[1760710153664,3.07006628,3775.2,3775.1,0.001]
[1760710153870,0.132,3775.2,3775.1,0.001]
[1760710154215,0.4212,3775.6,3775.1,0.001]
[1760710154459,0.132,3775.5,3775.1,0.001]
[1760710154616,2.64886628,3775.2,3775.1,0.001]
[1760710154956,0.4212,3775.4,3775.1,0.001]
[1760710155262,3.06353281,3776.3,3775.2,0.132]
[1760710155263,0.132,3775.8,3775.2,0.132]
[1760710155581,0.41542003,3776.3,3775.3,0.132]
[1760710155582,2.64835733,3776.0,3775.3,0.132]
[1760710155728,0.4212,3776.1,3775.3,0.132]
[1760710156134,0.4212,3776.1,3775.1,0.001]
[1760710156361,2.64830508,3776.0,3775.1,0.001]
[1760710156561,2.64886628,3775.2,3775.1,0.001]
[1760710156758,0.4212,3775.9,3775.1,0.001]
[1760710156959,1.728,3776.1,3775.1,0.001]
[1760710157280,1.728,3775.9,3775.1,0.001]
[1760710157475,0.4212,3776.1,3775.1,0.001]
[1760710157768,2.64886628,3775.2,3775.1,0.001]
[1760710158179,4.79886628,3775.2,3775.1,0.001]
[1760710158474,4.84503834,3775.2,3775.1,0.001]
[1760710159225,3.11703834,3775.2,3775.1,0.001]
[1760710159445,2.69503834,3775.2,3775.1,0.001]
[1760710159678,3.11703834,3775.2,3775.1,0.001]
[1760710159879,2.69503834,3775.2,3775.1,0.001]
[1760710160076,3.11703834,3775.2,3775.1,0.001]
[1760710161979,2.69503834,3775.2,3775.1,0.001]
[1760710162178,3.11703834,3775.2,3775.1,0.001]
[1760710162680,2.69503834,3775.2,3775.1,0.001]
[1760710163176,0.422,3776.3,3775.1,0.001]
[1760710163177,0.04616407,3775.9,3775.1,0.001]
[1760710163376,2.64844536,3775.8,3775.1,0.001]
[1760710163576,2.64788483,3776.6,3775.2,2.64880834]
[1760710163782,0.422,3776.8,3775.1,0.001]
[1760710163783,0.0461567,3776.5,3775.1,0.001]
[1760710164080,2.64886628,3775.2,3775.1,0.001]
[1760710164449,1.728,3776.0,3775.1,0.001]
[1760710164679,2.64886628,3775.2,3775.1,0.001]
[1760710165143,3.07086628,3775.2,3775.1,0.001]
[1760710165343,2.64886628,3775.2,3775.1,0.001]
[1760710165570,4.79886628,3775.2,3775.1,0.001]
[1760710166382,12.31800422,3775.2,3775.1,0.001]
[1760710167116,12.31800422,3775.2,3772.8,0.132]
[1760710167117,0.132,3773.5,3772.8,0.132]
[1760710167280,1.728,3775.1,3772.7,0.003]
[1760710167281,0.1235,3773.4,3772.7,0.003]
[1760710167609,2.65055131,3772.8,3772.7,0.003]
[1760710168215,2.65055131,3772.8,3770.1,2.65241782]
[1760710168216,12.923282,3772.7,3769.5,0.02652871]
[1760710168416,0.4162,3772.8,3768.5,0.13813598]
[1760710168417,14.264041,3772.5,3768.5,0.13813598]
[1760710168615,2.65260309,3769.9,3768.5,0.13813598]
[1760710168916,2.65204943,3770.7,3769.0,0.6739]
[1760710168917,0.4118,3770.6,3769.0,0.6739]
[1760710169089,0.4118,3770.6,3768.7,0.2215]
[1760710169090,1.728,3770.2,3768.7,0.2215]
[1760710169294,2.1398,3770.6,3768.7,0.2215]
[1760710169515,2.1398,3770.6,3768.0,0.2191]
[1760710169516,0.4580247,3770.6,3768.3,0.2215]
[1760710169718,0.4580247,3770.6,3768.0,0.6715]
[1760710169719,2.65230883,3770.3,3767.9,0.2191]
[1760710169885,2.65230883,3770.3,3767.0,0.2253]
[1760710169886,2.65285461,3769.6,3767.0,0.2253]
[1760710170085,0.5353,3769.5,3767.1,0.4524]
[1760710170294,2.65294211,3769.4,3767.1,0.47894561]
[1760710170505,0.4089,3769.3,3767.2,0.4524]
[1760710170705,0.04623977,3769.1,3767.3,0.0265442]
[1760710170904,0.1264,3769.5,3767.4,0.4524]
[1760710171105,0.1256,3769.5,3767.5,0.0265428]
[1760710171416,0.6336,3770.8,3767.6,0.4524]
[1760710171417,0.0875,3770.0,3767.6,0.4524]
[1760710171721,1.0802,3769.9,3767.6,3.10657163]
[1760710172019,1.728,3769.5,3767.6,0.4524]
[1760710172329,1.728,3769.5,3765.9,2.65539732]
[1760710172330,2.65363016,3768.5,3766.2,0.4524]
[1760710172485,0.6293,3768.4,3766.2,0.47895196]
[1760710172684,0.6293,3768.4,3766.2,0.4524]
[1760710172927,1.728,3768.1,3766.2,0.4524]
[1760710173216,0.04624898,3768.4,3766.8,2.65471253]
[1760710173515,0.04624898,3768.4,3767.0,2.65463233]
[1760710173692,0.04624898,3768.4,3767.1,0.2261]
[1760710173893,0.6284,3768.8,3767.1,0.2261]
[1760710174193,2.65355081,3768.6,3767.1,0.2261]
[1760710174525,0.6284,3768.8,3767.2,2.65448627]
[1760710174724,0.6284,3768.8,3767.1,0.2261]
[1760710174725,0.1791,3769.0,3767.3,0.4524]
[1760710174912,0.1791,3769.0,3767.8,2.65405273]
[1760710175113,2.65283267,3769.6,3767.9,0.4524]
[1760710175114,0.1792,3769.5,3767.9,0.4524]
[1760710175309,2.65294999,3769.4,3767.9,0.4524]
[1760710175511,0.4449,3769.4,3768.1,2.65379327]
[1760710175715,0.46240368,3769.6,3768.2,0.24803786]
[1760710176026,0.0875,3770.0,3768.3,0.4524]
[1760710176508,2.74006178,3770.0,3768.3,0.4524]
[1760710176703,2.74006178,3770.0,3768.2,0.2215]
[1760710176704,0.1818,3769.9,3768.2,0.2215]
[1760710177012,0.4422,3769.8,3767.6,0.4524]
[1760710177337,0.132,3769.0,3768.3,0.132]
[1760710177685,0.04622082,3769.7,3768.1,0.6739]
[1760710177686,0.04622082,3769.7,3768.4,0.47893646]
[1760710177886,0.132,3769.4,3768.7,0.132]
[1760710178087,0.132,3769.4,3768.1,0.2215]
[1760710178088,0.04623307,3770.5,3769.3,0.2181]
[1760710178411,3.10204281,3771.0,3769.4,0.4524]
[1760710178586,2.65231058,3770.3,3768.8,0.4524]
[1760710178787,0.4465,3770.2,3768.2,0.4524]
[1760710179018,0.132,3769.5,3769.0,2.65322147]
[1760710179226,0.132,3769.8,3769.2,0.132]
[1760710179427,2.65296829,3769.4,3768.9,0.132]
[1760710179603,0.4439,3769.3,3768.1,0.2215]
[1760710179792,0.1871,3769.9,3768.6,0.132]
[1760710179793,0.132,3769.2,3768.6,0.132]
[1760710180122,0.631,3769.9,3768.7,0.132]
[1760710180123,0.132,3769.3,3768.7,0.132]
[1760710180288,0.132,3769.1,3768.4,0.132]
[1760710180897,0.05,3772.2,3768.2,0.4524]
[1760710180898,0.4439,3770.7,3768.5,0.47893575]
[1760710181098,0.42723028,3770.3,3768.5,0.02653575]
[1760710181322,0.42723028,3770.3,3764.9,2.87759344]
[1760710181323,0.1837,3768.6,3766.6,0.4524]
[1760710181627,0.6251,3768.6,3766.6,0.4524]
[1760710181824,0.6251,3768.6,3766.4,0.2191]
[1760710181986,1.728,3768.1,3766.9,2.65469711]
[1760710182194,1.728,3768.2,3766.9,2.65465185]
[1760710182390,4.38172071,3768.3,3767.1,2.65454356]
[1760710182638,1.7742491,3768.5,3767.1,2.65454356]
[1760710182923,0.1862,3769.1,3767.1,0.6785]
[1760710183090,0.6336,3768.9,3766.5,0.4524]
[1760710183293,1.728,3768.6,3766.7,2.65484376]
[1760710183492,2.65366691,3768.4,3766.6,1.407]
[1760710183703,2.65343487,3768.7,3766.6,1.407]
[1760710183904,1.728,3768.6,3767.2,2.65447556]
[1760710184107,0.4389,3768.8,3767.0,2.65459066]
[1760710184108,2.65379434,3768.2,3767.0,2.65459066]
[1760710184427,2.1669,3768.8,3767.0,2.65459066]
[1760710184428,0.4389,3768.8,3767.1,0.2261]
[1760710184735,1.728,3768.6,3767.4,2.65434504]
[1760710184931,0.6336,3768.5,3766.4,0.001]
[1760710185142,0.8256,3766.5,3766.4,0.001]
[1760710185297,5.20858473,3766.5,3766.4,0.001]
[1760710185490,2.3531,3766.5,3766.4,0.001]
[1760710185931,5.64168473,3766.5,3766.4,0.001]
[1760710186104,6.05814819,3766.5,3766.4,0.001]
[1760710186320,2.65590141,3765.2,3764.2,0.97193369]
[1760710186523,2.65526672,3766.1,3764.2,0.97193369]
[1760710186524,0.6336,3765.0,3764.2,0.97193369]
[1760710186947,1.8988,3765.1,3764.2,0.97193369]
[1760710187233,0.6336,3765.0,3764.2,0.97193369]
[1760710187395,1.081,3765.0,3764.2,0.97193369]
[1760710187599,2.65625438,3764.7,3764.2,0.97193369]
[1760710187837,0.1708,3765.1,3764.2,0.97193369]
[1760710188296,2.3616,3765.0,3764.2,0.97193369]
[1760710188496,0.1708,3765.1,3764.2,0.97193369]
[1760710188697,0.49369353,3765.3,3764.2,3.62850668]
[1760710188897,0.86129862,3765.9,3764.2,3.62850057]
[1760710189102,0.04628504,3765.7,3764.4,2.6564631]
[1760710189331,0.04628504,3765.7,3764.3,0.4524]
[1760710189633,0.04628504,3765.7,3764.4,0.02656465]
[1760710189928,0.04628504,3765.7,3764.2,2.69993369]
[1760710189929,2.65519789,3766.2,3764.8,2.65611655]
[1760710190146,3.28904592,3766.5,3764.5,0.4524]
[1760710190306,2.65543166,3765.9,3764.5,0.4524]
[1760710190502,2.65555665,3765.7,3764.5,3.10878443]
[1760710190733,0.1789,3765.9,3764.6,2.65631422]
[1760710191041,2.70113267,3766.7,3764.7,0.02656254]
[1760710191042,0.0462754,3766.7,3764.7,0.02656254]
[1760710191338,0.132,3765.9,3765.3,2.78781956]
[1760710191505,0.132,3765.9,3765.4,0.2164]
[1760710191703,0.132,3765.9,3765.3,0.132]
[1760710192233,0.4938754,3766.7,3765.2,0.132]
[1760710192234,0.132,3765.8,3765.2,0.132]
[1760710192534,0.1816,3765.3,3762.9,0.6861]
[1760710192755,5.01757195,3765.1,3765.0,0.003]
[1760710192915,0.04628652,3765.7,3765.0,0.003]
[1760710193248,2.6559006,3765.3,3765.0,0.003]
[1760710193395,0.6336,3765.6,3765.0,0.003]
[1760710193595,2.65597195,3765.1,3765.0,0.003]
[1760710193997,3.28923225,3765.6,3765.0,0.003]
[1760710194198,0.6336,3765.8,3765.0,0.003]
[1760710194404,0.6336,3765.7,3765.0,0.003]
[1760710194800,2.65547987,3765.8,3765.0,0.003]
[1760710194801,0.6336,3765.8,3765.0,0.003]
[1760710195002,2.65554876,3765.7,3765.0,0.003]
[1760710195409,2.65574848,3765.5,3765.0,0.003]
[1760710195702,2.65576797,3765.4,3765.0,0.003]
[1760710195914,0.406,3766.7,3765.0,0.003]
[1760710196127,0.04628031,3765.9,3765.1,0.6819]
[1760710196330,2.73853918,3767.5,3765.1,0.6819]
[1760710196331,0.406,3767.2,3765.1,0.6819]
[1760710196517,0.0842,3767.5,3764.2,0.97193369]
[1760710196518,0.2209,3765.2,3764.2,0.97193369]
[1760710196931,2.65596858,3765.2,3764.2,0.97193369]
[1760710197151,0.6336,3765.5,3764.2,0.97193369]
[1760710197463,2.65574325,3765.5,3764.2,0.97193369]
[1760710197756,0.04628357,3765.6,3764.4,2.65646583]
[1760710197757,2.70191964,3765.6,3764.4,2.65646583]
[1760710197956,2.70191964,3765.6,3764.2,1.43743369]
[1760710197957,0.4465,3766.8,3764.5,0.49206395]
[1760710198117,2.65556464,3765.7,3764.5,0.4655]
[1760710198323,0.04627742,3766.0,3764.5,0.4655]
[1760710198644,0.4465,3766.8,3764.5,0.4655]
[1760710198958,2.8377317,3768.0,3764.8,1.728]
[1760710198959,0.4465,3767.3,3764.8,1.728]
[1760710199283,0.04626867,3767.2,3765.1,11.263796]
[1760710199556,2.65475601,3766.9,3765.2,3.6839]
[1760710199743,0.04626867,3767.2,3765.2,3.6839]
[1760710199931,2.65470889,3766.9,3765.5,2.65566931]
[1760710200142,0.41634123,3767.8,3765.7,2.65554876]
[1760710200143,2.6542322,3767.6,3765.7,2.65554876]
[1760710200458,1.728,3767.4,3765.2,0.2164]
[1760710200801,2.65513629,3766.3,3765.2,0.2164]
[1760710200974,0.2198,3766.4,3765.2,0.2164]
[1760710201124,0.2209,3766.9,3765.3,0.4655]
[1760710201322,2.65484376,3766.7,3765.2,0.2164]
[1760710201521,0.4374,3766.8,3764.3,2.65647894]
[1760710201522,2.65569791,3765.5,3764.3,2.65647894]
[1760710201752,0.1826,3765.9,3764.2,0.97193369]
[1760710202060,2.65518636,3766.3,3764.4,2.65646583]
[1760710202274,2.65518636,3766.3,3764.2,0.97193369]
[1760710202275,0.04627893,3766.6,3765.5,2.65562027]
[1760710202562,0.132,3766.3,3765.6,0.37495619]
[1760710202745,0.132,3766.3,3765.6,0.132]
[1760710202919,0.04627893,3766.6,3764.2,2.69993369]
[1760710202920,0.4323,3766.2,3764.5,0.433]
[1760710203128,0.132,3765.6,3765.0,0.1328]
[1760710203421,2.65574465,3765.5,3765.0,0.1328]
[1760710203620,0.132,3765.6,3765.2,2.65588999]
[1760710203849,0.002,3766.4,3765.3,0.4595583]
[1760710204055,0.002,3766.4,3765.5,0.132]
[1760710204261,0.002,3766.4,3765.4,0.0265576]
[1760710204262,0.002,3766.4,3766.1,0.132]
[1760710204603,0.002,3766.4,3765.1,0.2164]
[1760710204767,2.65524299,3766.2,3765.1,0.2164]
[1760710205057,0.002,3766.4,3765.9,0.132]
[1760710205250,0.002,3766.4,3765.3,2.65582195]
[1760710205444,0.002,3766.4,3765.6,0.132]
[1760710205445,0.132,3766.3,3765.6,0.132]
[1760710205653,0.002,3766.4,3765.7,0.02655548]
[1760710205855,0.002,3766.4,3766.1,0.132]
[1760710207562,0.002,3766.4,3765.1,0.2164]
[1760710207751,0.134,3766.4,3765.8,0.132]
[1760710207950,0.134,3766.4,3765.1,0.2164]
[1760710207951,0.002,3766.4,3765.1,0.2164]
[1760710208162,0.132,3765.7,3765.0,0.132]
[1760710208372,2.65604968,3765.0,3764.3,0.001]
[1760710208555,0.1899,3765.8,3764.3,0.001]
[1760710208761,0.1328,3765.1,3764.5,0.1328]
[1760710209349,0.1328,3765.1,3764.6,2.65625566]
[1760710209549,0.1328,3765.1,3764.5,0.1328]